[Event "ONJK DE"]
[Site "Enschede, Netherlands"]
[Date "2022.08.13"]
[Round "13.6"]
[White "Mendelsohn, Saffran (E)"]
[Black "Katpatal, Akshaj (E)"]
[Result "0-1"]
[TimeControl "40min + 30sec/move"]
[WhiteElo "824"]
[BlackElo "1874"]

1. e4 {[%clk 00:41:00]} e5 {[%clk 00:40:57]} {[%emt 00:00:04]} 2. Bc4 {[%clk
00:41:22]} {[%emt 00:00:07]} Nf6 {[%clk 00:41:21]} {[%emt 00:00:06]} 3. Nc3
{[%clk 00:41:42]} {[%emt 00:00:09]} Bc5 {[%clk 00:41:46]} {[%emt 00:00:06]} 4.
d3 {[%clk 00:41:54]} {[%emt 00:00:17]} d6 {[%clk 00:42:14]} {[%emt 00:00:04]} 5.
Nf3 {[%clk 00:42:12]} {[%emt 00:00:10]} Nc6 {[%clk 00:42:39]} {[%emt 00:00:06]}
6. h3 {[%clk 00:42:31]} {[%emt 00:00:11]} Be6 {[%clk 00:43:06]} {[%emt
00:00:03]} 7. Bb3 {[%clk 00:42:47]} {[%emt 00:00:14]} O-O {[%clk 00:43:01]}
{[%emt 00:00:36]} 8. O-O {[%clk 00:43:08]} {[%emt 00:00:09]} h6 {[%clk
00:43:28]} {[%emt 00:00:03]} 9. Be3 {[%clk 00:43:22]} {[%emt 00:00:15]} Bb6
{[%clk 00:43:53]} {[%emt 00:00:05]} 10. Re1 {[%clk 00:43:22]} {[%emt 00:00:29]}
Re8 {[%clk 00:44:17]} {[%emt 00:00:07]} 11. Qd2 {[%clk 00:43:36]} {[%emt
00:00:16]} Nd4 {[%clk 00:44:22]} {[%emt 00:00:25]} 12. Bxd4 {[%clk 00:42:51]}
{[%emt 00:01:14]} exd4 {[%clk 00:44:43]} {[%emt 00:00:10]} 13. Ne2 {[%clk
00:43:08]} {[%emt 00:00:13]} c5 {[%clk 00:45:07]} {[%emt 00:00:06]} 14. c4
{[%clk 00:42:41]} {[%emt 00:00:57]} dxc3 {[%clk 00:45:20]} {[%emt 00:00:17]} 15.
bxc3 {[%clk 00:42:56]} {[%emt 00:00:14]} c4 {[%clk 00:45:40]} {[%emt 00:00:11]}
16. Bxc4 {[%clk 00:42:13]} {[%emt 00:01:12]} Bxc4 {[%clk 00:46:05]} {[%emt
00:00:06]} 17. dxc4 {[%clk 00:42:34]} {[%emt 00:00:08]} Bxf2+ {[%clk 00:46:05]}
{[%emt 00:00:30]} 18. Kf1 {[%clk 00:42:35]} {[%emt 00:00:29]} Bxe1 {[%clk
00:46:28]} {[%emt 00:00:08]} 19. Kxe1 {[%clk 00:42:40]} {[%emt 00:00:24]} Nxe4
{[%clk 00:46:53]} {[%emt 00:00:06]} 20. Qd3 {[%clk 00:42:40]} {[%emt 00:00:30]}
Ng3 {[%clk 00:47:15]} {[%emt 00:00:07]} 21. Nfd4 {[%clk 00:42:54]} {[%emt
00:00:17]} Qh4 {[%clk 00:47:21]} {[%emt 00:00:20]} 22. Kd1 {[%clk 00:43:05]}
{[%emt 00:00:22]} Nxe2 {[%clk 00:47:46]} {[%emt 00:00:05]} 23. Nxe2 {[%clk
00:43:26]} {[%emt 00:00:08]} Qf2 {[%clk 00:48:09]} {[%emt 00:00:07]} 24. Rc1
{[%clk 00:43:37]} {[%emt 00:00:19]} Re3 {[%clk 00:48:32]} {[%emt 00:00:07]} 25.
Qd2 {[%clk 00:43:50]} {[%emt 00:00:18]} Rae8 {[%clk 00:48:55]} {[%emt
00:00:07]} 26. Rc2 {[%clk 00:43:51]} {[%emt 00:00:29]} Qxg2 {[%clk 00:49:18]}
{[%emt 00:00:07]} 27. Rb2 {[%clk 00:43:25]} {[%emt 00:00:56]} Rxe2 {[%clk
00:49:31]} {[%emt 00:00:17]} 28. Qxe2 {[%clk 00:43:27]} {[%emt 00:00:28]} Rxe2
{[%clk 00:49:56]} {[%emt 00:00:05]} 29. Rxe2 {[%clk 00:43:43]} {[%emt
00:00:13]} Qxe2+ {[%clk 00:50:21]} {[%emt 00:00:06]} 30. Kxe2 {[%clk 00:44:01]}
{[%emt 00:00:12]} Kf8 {[%clk 00:50:49]} {[%emt 00:00:02]} 31. Ke3 {[%clk
00:44:18]} {[%emt 00:00:14]} Ke7 {[%clk 00:51:14]} {[%emt 00:00:04]} 32. Ke4
{[%clk 00:44:41]} {[%emt 00:00:07]} Ke6 {[%clk 00:51:40]} {[%emt 00:00:04]} 33.
a4 {[%clk 00:44:57]} {[%emt 00:00:13]} g5 {[%clk 00:52:06]} {[%emt 00:00:05]}
34. a5 {[%clk 00:44:04]} {[%emt 00:01:23]} f5+ {[%clk 00:52:28]} {[%emt
00:00:07]} 35. Kf3 {[%clk 00:44:27]} {[%emt 00:00:07]} Ke5 {[%clk 00:52:51]}
{[%emt 00:00:07]} 36. Ke3 {[%clk 00:44:40]} {[%emt 00:00:18]} f4+ {[%clk
00:53:14]} {[%emt 00:00:07]} 37. Kf3 {[%clk 00:45:03]} {[%emt 00:00:07]} h5
{[%clk 00:53:38]} {[%emt 00:00:06]} 38. Kf2 {[%clk 00:45:10]} {[%emt 00:00:22]}
Ke4 {[%clk 00:54:03]} {[%emt 00:00:07]} 39. Ke2 {[%clk 00:45:22]} {[%emt
00:00:17]} f3+ {[%clk 00:54:29]} {[%emt 00:00:04]} 40. Kf2 {[%clk 00:45:45]}
{[%emt 00:00:07]} Kf4 {[%clk 00:54:55]} {[%emt 00:00:04]} 41. Kf1 {[%emt
00:00:15]} Kg3 {[%emt 00:00:11]} 42. Kg1 {[%clk 00:45:37]} {[%emt 00:00:11]}
f2+ {[%clk 00:55:21]} {[%emt 00:00:05]} 43. Kf1 {[%clk 00:46:01]} {[%emt
00:00:06]} Kf3 {[%clk 00:55:46]} {[%emt 00:00:05]} 44. c5 {[%clk 00:46:25]}
{[%emt 00:00:06]} g4 {[%clk 00:56:04]} {[%emt 00:00:12]} 45. a6 {[%clk
00:46:41]} {[%emt 00:00:15]} g3 {[%clk 00:56:28]} {[%emt 00:00:05]} 46. axb7
{[%clk 00:46:56]} {[%emt 00:00:15]} g2# {[%clk 00:56:17]} {[%emt 00:00:11]} 0-1

[Event "ONJK DE"]
[Site "Enschede, Netherlands"]
[Date "2022.08.13"]
[Round "13.7"]
[White "Leenen, Boyd (E)"]
[Black "Uitermark, Imre (E)"]
[Result "1/2-1/2"]
[TimeControl "40min + 30sec/move"]
[WhiteElo "1417"]
[BlackElo "1028"]

1. e4 {[%clk 00:40:59]} e5 {[%clk 00:40:57]} {[%emt 00:00:03]} 2. Nf3 {[%clk
00:41:27]} {[%emt 00:00:03]} Nc6 {[%clk 00:41:22]} {[%emt 00:00:05]} 3. Bc4
{[%clk 00:41:54]} {[%emt 00:00:03]} Nf6 {[%clk 00:41:45]} {[%emt 00:00:07]} 4.
d3 {[%clk 00:42:20]} {[%emt 00:00:03]} d6 {[%clk 00:41:54]} {[%emt 00:00:21]} 5.
Nc3 {[%clk 00:42:46]} {[%emt 00:00:05]} h6 {[%clk 00:42:15]} {[%emt 00:00:08]}
6. h3 {[%clk 00:43:12]} {[%emt 00:00:04]} Be6 {[%clk 00:42:14]} {[%emt
00:00:30]} 7. Bb3 {[%clk 00:43:37]} {[%emt 00:00:06]} Na5 {[%clk 00:42:25]}
{[%emt 00:00:20]} 8. Be3 {[%clk 00:44:01]} {[%emt 00:00:06]} Nxb3 {[%clk
00:42:28]} {[%emt 00:00:27]} 9. axb3 {[%clk 00:44:23]} {[%emt 00:00:08]} a6
{[%clk 00:42:49]} {[%emt 00:00:09]} 10. O-O {[%clk 00:44:47]} {[%emt 00:00:06]}
Qd7 {[%clk 00:43:12]} {[%emt 00:00:07]} 11. Re1 {[%clk 00:45:00]} {[%emt
00:00:17]} Be7 {[%clk 00:43:28]} {[%emt 00:00:14]} 12. d4 {[%clk 00:45:25]}
{[%emt 00:00:05]} exd4 {[%clk 00:42:58]} {[%emt 00:01:00]} 13. Bxd4 {[%clk
00:45:31]} {[%emt 00:00:24]} O-O {[%clk 00:42:32]} {[%emt 00:00:55]} 14. Bxf6
{[%clk 00:45:12]} {[%emt 00:00:49]} Bxf6 {[%clk 00:42:46]} {[%emt 00:00:16]} 15.
e5 {[%clk 00:45:37]} {[%emt 00:00:05]} Be7 {[%clk 00:43:11]} {[%emt 00:00:05]}
16. exd6 {[%clk 00:45:20]} {[%emt 00:00:47]} Qxd6 {[%clk 00:42:58]} {[%emt
00:00:43]} 17. Ne4 {[%emt 00:00:49]} Qxd1 {[%emt 00:00:03]} 18. Raxd1 {[%clk
00:45:58]} {[%emt 00:00:04]} Rfd8 {[%clk 00:41:09]} {[%emt 00:02:15]} 19. Nd4
{[%clk 00:44:52]} {[%emt 00:01:35]} Rab8 {[%clk 00:39:42]} {[%emt 00:01:57]} 20.
Nxe6 {[%clk 00:44:53]} {[%emt 00:00:30]} Rxd1 {[%clk 00:39:24]} {[%emt
00:00:48]} 21. Rxd1 {[%clk 00:45:18]} {[%emt 00:00:04]} fxe6 {[%clk 00:39:39]}
{[%emt 00:00:15]} 22. Rd7 {[%clk 00:45:37]} {[%emt 00:00:12]} Bd8 {[%clk
00:38:55]} {[%emt 00:01:14]} 23. Nc5 {[%clk 00:45:18]} {[%emt 00:00:48]} Bf6
{[%clk 00:36:10]} {[%emt 00:03:15]} 24. c3 {[%clk 00:45:00]} {[%emt 00:00:48]}
Rc8 {[%clk 00:35:34]} {[%emt 00:01:07]} 25. Nxb7 {[%clk 00:43:18]} {[%emt
00:02:12]} c6 {[%clk 00:35:31]} {[%emt 00:00:33]} 26. b4 {[%clk 00:42:58]}
{[%emt 00:00:50]} Bg5 {[%clk 00:32:39]} {[%emt 00:03:21]} 27. Nc5 {[%clk
00:42:13]} {[%emt 00:01:15]} Bc1 {[%clk 00:32:33]} {[%emt 00:00:35]} 28. Nd3
{[%clk 00:42:11]} {[%emt 00:00:31]} Bg5 {[%clk 00:32:50]} {[%emt 00:00:14]} 29.
f4 {[%clk 00:42:32]} {[%emt 00:00:10]} Rd8 {[%clk 00:32:36]} {[%emt 00:00:44]}
30. Rxd8+ {[%clk 00:42:49]} {[%emt 00:00:13]} Bxd8 {[%emt 00:00:09]} 31. Nc5
{[%clk 00:43:08]} {[%emt 00:00:09]} Bb6 {[%clk 00:32:58]} {[%emt 00:00:30]} 32.
Kf2 {[%clk 00:43:10]} {[%emt 00:00:28]} Bxc5+ {[%clk 00:33:10]} {[%emt
00:00:19]} 33. bxc5 {[%clk 00:43:35]} {[%emt 00:00:05]} Kf7 {[%emt 00:00:06]}
34. Ke3 {[%clk 00:43:56]} {[%emt 00:00:08]} Kf6 {[%clk 00:33:52]} {[%emt
00:00:12]} 35. Ke4 {[%clk 00:43:54]} {[%emt 00:00:32]} a5 {[%clk 00:33:42]}
{[%emt 00:00:40]} 36. g4 {[%clk 00:43:58]} {[%emt 00:00:26]} g6 {[%clk
00:33:39]} {[%emt 00:00:32]} 37. b3 {[%clk 00:43:12]} {[%emt 00:01:17]} g5
{[%clk 00:33:39]} {[%emt 00:00:31]} 38. fxg5+ {[%clk 00:38:47]} {[%emt
00:04:54]} hxg5 {[%clk 00:33:35]} {[%emt 00:00:34]} 39. Kd4 {[%clk 00:38:45]}
{[%emt 00:00:32]} e5+ {[%clk 00:33:35]} {[%emt 00:00:30]} 40. Ke4 {[%clk
00:39:04]} {[%emt 00:00:12]} Ke6 {[%clk 00:33:57]} {[%emt 00:00:08]} 41. c4
{[%clk 00:39:31]} {[%emt 00:00:04]} Kf6 {[%clk 00:34:09]} {[%emt 00:00:17]} 42.
Kf3 {[%clk 00:38:37]} {[%emt 00:01:24]} Ke6 {[%clk 00:33:20]} {[%emt 00:01:19]}
43. Kg3 {[%clk 00:38:49]} {[%emt 00:00:18]} e4 {[%clk 00:32:03]} {[%emt
00:01:46]} 44. Kf2 {[%clk 00:39:11]} {[%emt 00:00:09]} Kf6 {[%clk 00:32:13]}
{[%emt 00:00:20]} 45. Ke2 {[%clk 00:39:23]} {[%emt 00:00:18]} Ke6 {[%clk
00:32:30]} {[%emt 00:00:13]} 46. Kd2 {[%clk 00:39:24]} {[%emt 00:00:28]} Kf6
{[%clk 00:32:40]} {[%emt 00:00:19]} 1/2-1/2

[Event "ONJK DE"]
[Site "Enschede, Netherlands"]
[Date "2022.08.13"]
[Round "13.8"]
[White "Koppenens, Oscar (E)"]
[Black "Van Borren, Ruben (E)"]
[Result "1-0"]
[TimeControl "40min + 30sec/move"]
[WhiteElo "1266"]
[BlackElo "629"]

1. e4 {[%clk 00:40:59]} {[%emt 00:00:01]} e5 {[%clk 00:40:54]} {[%emt
00:00:06]} 2. Nf3 {[%clk 00:41:26]} {[%emt 00:00:03]} Nc6 {[%clk 00:41:15]}
{[%emt 00:00:09]} 3. Bc4 {[%clk 00:41:53]} {[%emt 00:00:03]} Nf6 {[%clk
00:41:32]} {[%emt 00:00:12]} 4. d4 {[%clk 00:42:18]} {[%emt 00:00:05]} exd4
{[%clk 00:41:38]} {[%emt 00:00:24]} 5. e5 {[%clk 00:42:44]} {[%emt 00:00:05]}
Qe7 {[%clk 00:41:18]} {[%emt 00:00:50]} 6. O-O {[%clk 00:42:59]} {[%emt
00:00:16]} Nxe5 {[%clk 00:41:12]} {[%emt 00:00:35]} 7. Nxe5 {[%clk 00:43:09]}
{[%emt 00:00:20]} Qc5 {[%clk 00:41:11]} {[%emt 00:00:30]} 8. Bxf7+ {[%clk
00:43:31]} {[%emt 00:00:09]} Kd8 {[%clk 00:41:20]} {[%emt 00:00:20]} 9. Nf3
{[%clk 00:43:32]} {[%emt 00:00:30]} Bd6 {[%clk 00:40:31]} {[%emt 00:01:18]} 10.
Nxd4 {[%clk 00:43:44]} {[%emt 00:00:19]} Qe5 {[%clk 00:40:47]} {[%emt
00:00:14]} 11. f4 {[%clk 00:43:58]} {[%emt 00:00:16]} Qc5 {[%clk 00:40:45]}
{[%emt 00:00:31]} 12. Re1 {[%clk 00:43:32]} {[%emt 00:00:55]} b6 {[%clk
00:40:48]} {[%emt 00:00:30]} 13. Be3 {[%clk 00:42:40]} {[%emt 00:01:21]} Qb4
{[%clk 00:40:52]} {[%emt 00:00:26]} 14. Qf3 {[%emt 00:00:53]} c6 {[%clk
00:40:44]} {[%emt 00:00:24]} 15. Nd2 {[%clk 00:41:20]} {[%emt 00:01:42]} Qxb2
{[%clk 00:41:00]} {[%emt 00:00:13]} 16. Nc4 {[%clk 00:41:31]} {[%emt 00:00:20]}
Qb4 {[%clk 00:40:43]} {[%emt 00:00:46]} 17. a3 {[%clk 00:41:54]} {[%emt
00:00:07]} Qa4 {[%clk 00:40:35]} {[%emt 00:00:35]} 18. Nxd6 {[%clk 00:42:11]}
{[%emt 00:00:16]} Ba6 {[%clk 00:40:41]} {[%emt 00:00:25]} 19. Rad1 {[%clk
00:42:07]} {[%emt 00:00:34]} Qxa3 {[%clk 00:40:42]} {[%emt 00:00:28]} 20. Nxc6+
{[%clk 00:42:30]} {[%emt 00:00:07]} dxc6 {[%clk 00:40:14]} {[%emt 00:00:57]} 21.
Qxc6 {[%clk 00:42:54]} {[%emt 00:00:06]} Rf8 {[%clk 00:40:05]} {[%emt
00:00:40]} 22. Nc8+ {[%clk 00:43:20]} {[%emt 00:00:05]} Qd6 {[%clk 00:40:49]}
{[%emt 00:00:57]} 23. Rxd6+ {[%clk 00:44:32]} {[%emt 00:00:06]} Nd7 {[%clk
00:41:07]} {[%emt 00:00:12]} 24. Qxd7# {[%clk 00:44:28]} {[%emt 00:00:04]} 1-0